bitfinex-derivatives/quotes_BNBF0:USTF0_20250603
["timestamp","ask_amount","ask_price","bid_price","bid_amount"]
[1748916011098,0.771,670.96,670.73,0.98781525]
[1748916011294,0.771,670.96,670.74,1.28599338]
[1748916011499,0.771,670.96,670.75,0.29817368]
[1748916014904,0.771,670.96,670.76,0.98762798]
[1748916015103,0.771,670.96,670.77,0.29816479]
[1748916015503,0.771,670.96,670.77,1.28521149]
[1748916016203,0.771,670.96,670.78,0.9870467]
[1748916016499,0.771,670.96,670.79,0.2981559]
[1748916016703,0.771,670.96,670.79,1.2847639]
[1748916016903,0.771,670.96,670.8,0.98661318]
[1748916017099,0.771,670.96,670.81,0.29814701]
[1748916017501,0.771,670.96,670.81,1.28476019]
[1748916017701,0.771,670.96,670.82,0.98661318]
[1748916017897,0.771,670.96,670.83,1.2847513]
[1748916018205,0.771,670.96,670.84,0.98661318]
[1748916018503,0.771,670.96,670.85,0.98661318]
[1748916018802,0.771,670.96,670.86,1.28473797]
[1748916019004,0.771,670.96,670.87,1.28473353]
[1748916019205,0.771,670.96,670.88,1.28472908]
[1748916019403,0.771,670.96,670.89,1.28472464]
[1748916019704,0.771,670.96,670.9,1.2847202]
[1748916019904,0.771,670.96,670.91,1.28471575]
[1748916020098,0.771,670.96,670.92,0.29809813]
[1748916020301,0.771,670.96,670.93,0.98521423]
[1748916020604,0.771,670.96,670.94,1.28330347]
[1748916020903,0.771,670.96,670.95,1.28329903]
[1748916022403,0.771,670.96,670.95,0.2980848]
[1748916022597,0.771,670.96,670.95,1.28235274]
[1748916023299,0.771,670.96,670.95,0.2980848]
[1748916027503,0.947,670.97,670.95,0.2980848]
[1748916036908,0.773,671.62,670.95,0.2980848]
[1748916041912,0.773,671.62,670.96,0.98110431]
[1748916042118,0.773,671.62,670.97,1.27918022]
[1748916042320,0.773,671.62,670.98,0.29807147]
[1748916046720,2.21699819,671.99,670.98,0.29807147]
[1748916047221,0.40739134,671.98,670.98,0.29807147]
[1748916047422,2.21699819,671.99,670.98,0.29807147]
[1748916048218,2.21699819,671.88,670.98,0.29807147]
[1748916048422,2.21699819,671.87,670.98,0.29807147]
[1748916049721,0.40741262,671.86,670.98,0.29807147]
[1748916049926,2.21699819,671.83,670.98,0.29807147]
[1748916050323,3.23499819,671.85,670.98,0.29807147]
[1748916050522,2.21699819,671.81,670.98,0.29807147]
[1748916050927,2.21699819,671.83,670.98,0.29807147]
[1748916051829,0.40745221,671.82,670.98,0.29807147]
[1748916052428,0.40742898,671.81,670.98,0.29807147]
[1748916052627,0.81490425,671.82,670.98,0.29807147]
[1748916052628,0.40745204,671.82,670.98,0.29807147]
[1748916052932,0.40742909,671.81,670.98,0.29807147]
[1748916053126,0.40742909,671.8,670.98,0.29807147]
[1748916053428,0.40742896,671.79,670.98,0.29807147]
[1748916053630,0.81490865,671.82,670.98,0.29807147]
[1748916053827,0.40742891,671.81,670.98,0.29807147]
[1748916054028,1.47546086,671.75,670.98,0.29807147]
[1748916054230,1.47622181,671.7,670.98,0.29807147]
[1748916054528,1.47622181,671.68,670.98,0.29807147]
[1748916054729,1.47622181,671.69,670.98,0.29807147]
[1748916054932,1.88365085,671.68,670.98,0.29807147]
[1748916055131,0.40743251,671.67,670.98,0.29807147]
[1748916055330,1.47622181,671.68,670.98,0.29807147]
[1748916055531,1.47622181,671.67,670.98,0.29807147]
[1748916055931,0.40742896,671.66,670.98,0.29807147]
[1748916056335,0.40742896,671.65,670.98,0.29807147]
[1748916056535,1.47622181,671.65,670.98,0.29807147]
[1748916056734,1.88413606,671.64,670.98,0.29807147]
[1748916056934,1.47622181,671.64,670.98,0.29807147]
[1748916057134,0.81583584,671.63,670.98,0.29807147]
[1748916057334,1.47622181,671.57,670.98,0.29807147]
[1748916057534,1.47622181,671.56,670.98,0.29807147]
[1748916057930,1.47622181,671.55,670.98,0.29807147]
[1748916058331,1.47622181,671.53,670.98,0.29807147]
[1748916059237,1.47622181,671.43,670.98,0.29807147]
[1748916059738,1.47622181,671.38,670.98,0.29807147]
[1748916059939,1.47622181,671.36,670.98,0.29807147]
[1748916060339,1.47622181,671.35,670.98,0.29807147]
[1748916060738,1.47622181,671.34,670.98,0.29807147]
[1748916061137,1.47622181,671.36,670.98,0.29807147]
[1748916061531,0.81794526,671.35,670.98,0.29807147]
[1748916061734,0.4089735,671.34,670.98,0.29807147]
[1748916062835,0.4112326,671.33,670.98,0.29807147]
[1748916063235,0.41122562,671.32,670.98,0.29807147]
[1748916063440,0.4112326,671.33,670.98,0.29807147]
[1748916063843,1.47978722,671.25,670.98,0.29807147]
[1748916065243,0.4112326,671.33,670.98,0.29807147]
[1748916065436,0.41189966,671.32,670.98,0.29807147]
[1748916065639,1.89101982,671.33,670.98,0.29807147]
[1748916066037,1.47978722,671.32,670.98,0.29807147]
[1748916066241,1.47978722,671.31,670.98,0.29807147]
[1748916067345,0.41210467,671.3,670.98,0.29807147]
[1748916067544,1.47978722,671.31,670.98,0.29807147]
[1748916067945,0.41210467,671.3,670.98,0.29807147]
[1748916068145,1.47978722,671.31,670.98,0.29807147]
[1748916068146,0.40838363,671.29,670.98,0.29807147]
[1748916068342,1.47978722,671.31,670.98,0.29807147]
[1748916068941,0.4112326,671.33,670.98,0.29807147]
[1748916069144,1.47976804,671.32,670.98,0.29807147]
[1748916069641,0.40840052,671.31,670.98,0.29807147]
[1748916069846,1.47976804,671.32,670.98,0.29807147]
[1748916070046,1.47976804,671.28,670.98,0.29807147]
[1748916070245,0.81689323,671.27,670.98,0.29807147]
[1748916070548,0.40842806,671.3,670.98,0.29807147]
[1748916081852,1.88664339,671.3,670.98,0.29807147]
[1748916082052,1.47821533,671.29,670.98,0.29807147]
[1748916082855,0.40842806,671.3,670.98,0.29807147]
[1748916083057,1.47821533,671.29,670.98,0.29807147]
[1748916083755,1.88664339,671.3,670.98,0.29807147]
[1748916086464,0.40842806,671.3,670.98,0.29807147]
[1748916131097,0.926,671.29,670.98,0.29807147]
[1748916159208,0.40842806,671.3,670.98,0.29807147]
[1748916162213,0.40842806,671.3,671.0,1.10382307]
[1748916162408,0.40842806,671.3,671.17,1.10185835]
[1748916162714,0.741,671.29,671.18,0.29798265]
[1748916164611,0.40842806,671.3,671.18,0.29798265]
[1748916165009,0.40842806,671.3,671.22,1.47525657]
[1748916165210,0.40842806,671.3,671.23,0.29796046]
[1748916166312,0.40842806,671.3,671.26,1.09755378]
[1748916166512,0.40842806,671.3,671.27,0.2979427]
[1748916181426,0.40842806,671.3,671.29,2.21151941]
[1748916181719,0.40842806,671.3,671.29,2.50945323]
[1748916182420,0.4089735,671.34,671.29,0.29793382]
[1748916186326,0.4089735,671.34,671.29,2.4699057]
[1748916187630,0.4089735,671.34,671.33,2.17197188]
[1748916187930,0.4089735,671.34,671.33,0.29791607]
[1748916195535,0.4089735,671.34,671.33,1.74443833]
[1748916197038,0.4089735,671.34,671.33,0.29791607]
[1748916197738,0.4089735,671.34,671.33,1.74423932]
[1748916197936,0.4089735,671.34,671.33,0.29791607]
[1748916199340,1.764,671.68,671.33,0.29791607]
[1748916199741,1.764,671.68,671.5,1.44580684]
[1748916199943,1.764,671.68,671.51,0.29783621]
[1748916201646,1.764,671.68,671.57,1.44580684]
[1748916201947,1.764,671.68,671.58,0.29780517]
[1748916202248,1.764,671.68,671.59,1.44580684]
[1748916202551,1.764,671.68,671.6,0.2977963]
[1748916202949,1.764,671.68,671.6,1.74360314]
[1748916204250,1.764,671.68,671.6,0.2977963]
[1748916205451,1.764,671.68,671.63,1.44580684]
[1748916205651,1.764,671.68,671.64,0.29777857]
[1748916206446,1.764,671.68,671.64,1.74358541]
[1748916207648,1.764,671.68,671.65,1.44580684]
[1748916207850,1.764,671.68,671.66,0.2977697]
[1748916209349,0.758,671.99,671.66,0.2977697]
[1748916209548,0.758,671.99,671.92,1.08632673]
[1748916209756,0.758,671.99,671.93,0.29765005]
[1748916226462,1.06,672.25,671.93,0.29765005]
[1748916242679,0.83,672.62,671.93,0.29765005]
[1748916246192,0.885,672.61,671.93,0.29765005]
[1748916250599,0.885,672.61,671.95,1.10172625]
[1748916250800,0.885,672.61,671.96,0.29763676]
[1748916251197,0.885,672.61,671.99,1.10172625]
[1748916251393,0.885,672.61,672.0,0.29761904]
[1748916251900,0.885,672.61,672.0,1.39934529]
[1748916252098,0.885,672.61,672.0,1.39900337]
[1748916252299,0.885,672.61,672.0,0.29761904]
[1748916252599,0.885,672.61,672.0,1.39900337]
[1748916252999,0.885,672.61,672.03,1.10138433]
[1748916253200,0.885,672.61,672.04,0.29760133]
[1748916253793,0.885,672.61,672.04,1.39898566]
[1748916254796,0.885,672.61,672.04,0.29760133]
[1748916255797,0.885,672.61,672.1,1.0997849]
[1748916255999,0.885,672.61,672.11,0.29757033]
[1748916256897,0.885,672.61,672.15,1.0997849]
[1748916257098,0.885,672.61,672.22,1.0997849]
[1748916257402,0.885,672.61,672.32,1.0997849]
[1748916257993,0.885,672.61,672.33,1.39725786]
[1748916258201,0.885,672.61,672.34,0.29746854]
[1748916267109,0.847,672.62,672.34,0.29746854]
[1748916267408,0.705,672.73,672.34,0.29746854]
[1748916269513,1.47309641,673.46,672.34,0.29746854]
[1748916270107,1.47309641,673.47,672.34,0.29746854]
[1748916271012,0.906,673.01,672.34,0.29746854]
[1748916281817,0.906,673.01,672.38,1.09065766]
[1748916282022,0.906,673.01,672.39,0.29744642]
[1748916283618,0.906,673.01,672.39,1.38810408]
[1748916283823,0.906,673.01,672.39,0.29744642]
[1748916287027,0.906,673.01,672.39,1.38777405]
[1748916287228,0.906,673.01,672.39,0.29744642]
[1748916293029,1.47309641,673.65,672.39,0.29744642]
[1748916293829,1.47309641,673.66,672.39,0.29744642]
[1748916294025,1.47309641,673.65,672.39,0.29744642]
[1748916294224,1.47309641,673.67,672.39,0.29744642]
[1748916294829,1.47309641,673.68,672.39,0.29744642]
[1748916295230,1.47309641,673.67,672.39,0.29744642]
[1748916296234,1.47309641,673.66,672.39,0.29744642]
[1748916296734,1.47309641,673.63,672.39,0.29744642]
[1748916297225,1.47309641,673.62,672.39,0.29744642]
[1748916297425,0.995,673.69,672.39,0.29744642]
[1748916297627,1.47309641,673.38,672.39,0.29744642]
[1748916297833,1.47309641,673.48,672.39,0.29744642]
[1748916298231,2.00661737,672.84,672.39,0.29744642]
[1748916298429,1.0033827,672.83,672.39,0.29744642]
[1748916298626,1.00339076,672.82,672.39,0.29744642]
[1748916298831,1.00324901,672.84,672.39,0.29744642]
[1748916299627,1.00420386,672.83,672.39,0.29744642]
[1748916299827,1.00324901,672.84,672.39,0.29744642]
[1748916300532,0.43742979,672.83,672.39,0.29744642]
[1748916300733,1.00324901,672.84,672.39,0.29744642]
[1748916301335,1.4417403,672.83,672.39,0.29744642]
[1748916301526,0.43742376,672.82,672.39,0.29744642]
[1748916301728,1.00568097,672.81,672.39,0.29744642]
[1748916302027,1.00568819,672.8,672.39,0.29744642]
[1748916302229,0.43744414,672.79,672.39,0.29744642]
[1748916302533,1.44315607,672.78,672.39,0.29744642]
[1748916302933,0.43743212,672.77,672.39,0.29744642]
[1748916303135,1.00574575,672.76,672.39,0.29744642]
[1748916303330,0.43747838,672.76,672.39,0.29744642]
[1748916303931,1.00581458,672.75,672.39,0.29744642]
[1748916304235,0.43747838,672.76,672.39,0.29744642]
[1748916304634,1.45151295,672.75,672.39,0.29744642]
[1748916304832,0.43748691,672.75,672.39,0.29744642]
[1748916305234,1.01402715,672.74,672.39,0.29744642]
[1748916305530,0.43748691,672.75,672.39,0.29744642]
[1748916306234,0.91408958,672.74,672.39,0.29744642]
[1748916306437,1.47109575,672.73,672.39,0.29744642]
[1748916306635,1.01404798,672.72,672.39,0.29744642]
[1748916306837,0.45779895,672.71,672.39,0.29744642]
[1748916307437,0.45779933,672.7,671.57,1.09340348]
[1748916307632,1.01437318,672.69,671.59,0.29780074]
[1748916307937,1.47309641,672.54,671.59,0.29780074]
[1748916308130,1.47239958,672.53,671.59,0.29780074]
[1748916308331,0.45790615,672.52,671.59,0.29780074]
[1748916308534,0.4579157,672.51,671.59,0.29780074]
[1748916308735,1.47309641,672.54,671.59,0.29780074]
[1748916308933,1.01564502,672.53,671.59,0.29780074]
[1748916309136,1.47355206,672.52,671.59,0.29780074]
[1748916309337,0.45791109,672.52,671.59,0.29780074]
[1748916309833,1.01562655,672.51,671.59,0.29780074]
[1748916310134,0.45791109,672.52,671.59,0.29780074]
[1748916311534,2.03080565,672.51,671.59,0.29780074]
[1748916311730,1.0153838,672.5,671.59,0.29780074]
[1748916311933,1.0154163,672.51,671.59,0.29780074]
[1748916312438,1.01538165,672.5,671.59,0.29780074]
[1748916312633,1.0154163,672.51,671.59,0.29780074]
[1748916313034,1.01541749,672.5,671.59,0.29780074]
[1748916313336,1.0154163,672.51,671.59,0.29780074]
[1748916314438,1.0154598,672.5,671.59,0.29780074]
[1748916314736,1.01545646,672.49,671.59,0.29780074]
[1748916315038,1.01545646,672.48,671.59,0.29780074]
[1748916315239,0.99864561,672.47,671.59,0.29780074]
[1748916315434,0.99864561,672.46,671.59,0.29780074]
[1748916315633,0.99865955,672.45,671.59,0.29780074]
[1748916315840,1.0154163,672.51,671.59,0.29780074]
[1748916316036,0.99884012,672.5,671.59,0.29780074]
[1748916316337,1.0154163,672.51,671.59,0.29780074]
[1748916316542,0.9988146,672.5,671.59,0.29780074]
[1748916316742,0.9988146,672.49,671.59,0.29780074]
[1748916317042,0.99825849,672.48,671.59,0.29780074]
[1748916317246,1.0154163,672.51,671.59,0.29780074]
[1748916317841,0.99592523,672.5,671.59,0.29780074]
[1748916318743,1.0154163,672.51,671.59,0.29780074]
[1748916319148,1.0002853,672.5,671.59,0.29780074]
[1748916319347,1.00022618,672.49,671.59,0.29780074]
[1748916319550,1.0002262,672.48,671.59,0.29780074]
[1748916319747,1.0154163,672.51,671.59,0.29780074]
[1748916320250,1.00110235,672.5,671.59,0.29780074]
[1748916320750,1.00109384,672.49,671.59,0.29780074]
[1748916321049,1.0154163,672.51,671.59,0.29780074]
[1748916321348,1.00104273,672.5,671.59,0.29780074]
[1748916321541,1.0154163,672.51,671.59,0.29780074]
[1748916323645,1.00293355,672.5,671.59,0.29780074]
[1748916323849,1.0154163,672.51,671.59,0.29780074]
[1748916324051,1.00294489,672.5,671.59,0.29780074]
[1748916324246,1.00291879,672.49,671.59,0.29780074]
[1748916324452,1.00291878,672.48,671.59,0.29780074]
[1748916324650,1.00298661,672.47,671.59,0.29780074]
[1748916324854,1.0154163,672.51,671.59,0.29780074]
[1748916325253,1.00304587,672.5,671.59,0.29780074]
[1748916325452,1.0030406,672.5,671.59,0.29780074]
[1748916325847,1.00302566,672.49,671.59,0.29780074]
[1748916326050,1.0030174,672.48,671.59,0.29780074]
[1748916326349,1.0154163,672.51,671.59,0.29780074]
[1748916326556,0.715,672.47,671.59,0.29780074]
[1748916326955,1.035,672.46,671.59,0.29780074]
[1748916327151,1.00432571,672.45,671.59,0.29780074]
[1748916327851,1.035,672.46,671.59,0.29780074]
[1748916328056,1.00336274,672.45,671.59,0.29780074]
[1748916329254,1.00326995,672.44,671.59,0.29780074]
[1748916329457,1.00336274,672.45,671.59,0.29780074]
[1748916329653,1.00326287,672.44,671.59,0.29780074]
[1748916329953,1.00325678,672.43,671.59,0.29780074]
[1748916330257,1.00336274,672.45,671.59,0.29780074]
[1748916330460,1.00323114,672.44,671.59,0.29780074]
[1748916330652,1.00336274,672.45,671.59,0.29780074]
[1748916355162,0.758,672.44,671.59,0.29780074]
[1748916355368,1.00230598,672.43,671.59,0.29780074]
[1748916355569,1.00230583,672.42,671.59,0.29780074]
[1748916355763,0.758,672.44,671.59,0.29780074]
[1748916356263,1.00230812,672.43,671.59,0.29780074]
[1748916356469,0.758,672.44,671.59,0.29780074]
[1748916357170,1.00230484,672.43,671.59,0.29780074]
[1748916357370,0.758,672.44,671.59,1.3915344]
[1748916358368,0.758,672.44,671.6,1.10033074]
[1748916358564,0.758,672.44,671.62,0.29778743]
[1748916358970,0.709,672.43,671.62,0.29778743]
[1748916359367,0.709,672.43,671.64,1.10033074]
[1748916359670,0.709,672.43,671.65,0.29777413]
[1748916361065,0.709,672.43,671.66,1.10033074]
[1748916361266,0.709,672.43,671.67,0.29776527]
[1748916365768,1.112,672.42,671.67,0.29776527]
[1748916371273,1.112,672.42,671.7,1.10123084]
[1748916371472,1.112,672.42,671.77,1.10123084]
[1748916371676,1.02,672.41,671.78,0.29771651]
[1748916372073,1.02,672.41,671.79,1.10123084]
[1748916372278,1.02,672.41,671.8,0.29770765]
[1748916372477,1.02,672.41,671.82,1.10123084]
[1748916372678,1.02,672.41,671.83,0.29769435]
[1748916372877,1.02,672.41,671.84,1.10123084]
[1748916373079,1.02,672.41,671.85,0.29768549]
[1748916373373,1.02,672.41,671.85,1.39891633]
[1748916373779,1.02,672.41,671.85,0.29768549]
[1748916373978,1.02,672.41,671.95,1.10123084]
[1748916374177,1.02,672.41,671.96,0.29763676]
[1748916375674,0.774,672.4,671.96,0.29763676]
[1748916378981,0.683,672.39,671.96,0.29763676]
[1748916388083,0.741,672.38,671.96,0.29763676]
[1748916397199,1.00042666,672.37,671.96,0.29763676]
[1748916397498,2.21409641,672.38,671.96,0.29763676]
[1748916397697,1.47309641,672.37,671.96,0.29763676]
[1748916397892,1.47309641,672.22,671.96,0.29763676]
[1748916398694,0.741,672.38,671.96,0.29763676]
[1748916398695,1.47309641,672.23,671.96,0.29763676]
[1748916398894,1.00053306,672.22,671.96,0.29763676]
[1748916399100,2.47362947,672.21,671.96,0.29763676]
[1748916399401,1.47309641,672.21,671.96,0.29763676]
[1748916399598,1.47309641,672.2,671.96,0.29763676]
[1748916399803,0.99930842,672.19,671.96,0.29763676]
[1748916399995,0.99930841,672.2,671.96,0.29763676]
[1748916400396,0.99918573,672.19,671.96,0.29763676]
[1748916400599,1.47309641,672.11,671.74,1.09868714]
[1748916400800,1.47309641,672.15,671.74,1.09868714]
[1748916400995,0.99918848,672.14,671.74,1.09868714]
[1748916401199,0.9991863,672.13,671.74,1.09868714]
[1748916401396,1.47309641,672.15,671.74,1.09868714]
[1748916401698,0.99920115,672.14,671.74,1.09868714]
[1748916402104,1.47309641,672.17,671.74,1.09868714]
[1748916402299,1.47309641,672.16,671.74,1.09868714]
[1748916402701,0.99930841,672.2,671.74,1.09868714]
[1748916403299,0.99915311,672.19,671.74,1.09868714]
[1748916403500,0.99930841,672.2,671.74,1.09868714]
[1748916403697,0.99915512,672.19,671.74,1.09868714]
[1748916404997,0.99937056,672.18,671.74,1.09868714]
[1748916405198,0.99937056,672.17,671.74,1.09868714]
[1748916405402,0.99936802,672.16,671.74,1.09868714]
[1748916405799,0.99937145,672.15,671.74,1.09868714]
[1748916406098,0.99936802,672.16,671.74,1.09868714]
[1748916406796,0.9993703,672.15,671.74,1.09868714]
[1748916406998,0.9993698,672.14,671.74,1.09868714]
[1748916408501,0.99935684,672.13,671.74,1.09868714]
[1748916408698,0.9993698,672.14,671.74,1.09868714]
[1748916409703,0.99936038,672.13,671.74,1.09868714]
[1748916409898,0.9993698,672.14,671.74,1.09868714]
[1748916410705,0.98996404,672.13,671.74,1.09868714]
[1748916410903,0.98996404,672.12,671.74,1.09868714]
[1748916411106,0.98996404,672.11,671.74,1.09868714]
[1748916411304,0.98996404,672.1,671.74,1.09868714]
[1748916411505,0.98996404,672.09,671.74,1.09868714]
[1748916411701,0.9993698,672.14,671.74,1.09868714]
[1748916412403,0.98598339,672.13,671.74,1.09868714]
[1748916412607,0.98598311,672.12,671.74,1.09868714]
[1748916415305,0.783,672.11,671.74,1.09868714]
[1748916426817,0.688,672.1,671.74,1.09868714]
[1748916430616,0.688,672.1,671.74,1.39642138]
[1748916433015,0.688,672.1,671.75,0.29772981]
[1748916444124,1.74505613,672.09,671.75,0.29772981]
[1748916444325,0.742,672.09,671.75,0.29772981]
[1748916444532,2.00611226,672.08,671.75,0.29772981]
[1748916444829,0.742,672.09,671.75,0.29772981]
[1748916445131,1.00304666,672.08,671.75,0.29772981]
[1748916445330,1.00305125,672.07,671.75,0.29772981]
[1748916445825,1.00307996,672.06,671.75,0.29772981]
[1748916446029,1.00307996,672.05,671.75,0.29772981]
[1748916446230,1.00305125,672.07,671.75,0.29772981]
[1748916446628,1.00229942,672.06,671.75,0.29772981]
[1748916446832,1.00305125,672.07,671.75,0.29772981]
[1748916447129,1.00228086,672.05,671.75,0.29772981]
[1748916447524,1.00305125,672.07,671.75,0.29772981]
[1748916448324,2.00328737,672.06,671.75,0.29772981]
[1748916448526,1.0010092,672.05,671.75,0.29772981]
[1748916448730,2.00328737,672.06,671.75,0.29772981]
[1748916449131,1.00101048,672.05,671.75,0.29772981]
[1748916449334,2.00328737,672.06,671.75,0.29772981]
[1748916449635,2.00202096,672.05,671.75,0.29772981]
[1748916449834,0.41459647,672.04,671.75,0.29772981]
[1748916450235,1.46673193,672.01,671.75,0.29772981]
[1748916450630,1.46673193,671.96,671.75,0.29772981]
[1748916450834,1.00104093,671.95,671.75,0.29772981]
[1748916451635,3.29696742,671.94,671.75,0.29772981]
[1748916451835,1.88132773,671.94,671.75,0.29772981]
[1748916452037,1.00104201,671.93,671.75,0.29772981]
[1748916452336,0.4145958,671.94,671.75,0.29772981]
[1748916452531,1.46673193,671.92,671.75,0.29772981]
[1748916452737,0.41519438,671.91,671.75,0.29772981]
[1748916452937,1.46673193,671.87,671.75,0.29772981]
[1748916453136,2.46805098,671.86,671.75,0.29772981]
[1748916453442,0.41520486,671.85,671.75,0.29772981]
[1748916453731,2.8832719,671.85,671.75,0.29772981]
[1748916453935,1.41652576,671.84,671.75,0.29772981]
[1748916454132,3.29846142,671.84,671.75,0.29772981]
[1748916454334,0.41520223,671.83,671.75,0.29772981]
[1748916454539,1.46673193,671.83,671.75,0.29772981]
[1748916454839,0.41520657,671.82,671.75,0.29772981]
[1748916455339,0.41518905,671.81,671.75,0.29772981]
[1748916455539,1.41648641,671.8,671.75,0.29772981]
[1748916455736,1.0020939,671.79,671.75,0.29772981]
[1748916455940,0.41518905,671.8,671.75,0.29772981]
[1748916456237,1.00206051,671.79,671.75,0.29772981]
[1748916456443,1.00206051,671.78,671.75,0.29772981]
[1748916456643,0.41518987,671.77,671.75,0.29772981]
[1748916456941,0.41520657,671.82,671.74,1.09868714]
[1748916456942,2.20964462,671.8,671.74,1.09868714]
[1748916457242,3.21177225,671.79,671.74,1.09868714]
[1748916457435,2.20964462,671.8,671.74,1.09868714]
[1748916457638,2.20964462,671.76,671.74,1.09868714]
[1748916457838,3.62903996,671.75,671.74,1.09868714]
[1748916458042,2.20964462,671.75,671.74,1.09868714]
[1748916458238,1.00219612,671.75,671.74,1.09868714]
[1748916458439,2.20964462,671.77,671.74,1.09868714]
[1748916458637,2.20964462,671.78,671.74,1.09868714]
[1748916458838,2.20964462,671.77,671.74,1.09868714]
[1748916459243,2.20964462,671.81,671.74,1.09868714]
[1748916460237,1.00221003,671.8,671.74,1.09868714]
[1748916460441,1.00221003,671.79,671.74,1.09868714]
[1748916460640,0.41520657,671.82,671.74,1.09868714]
[1748916461049,1.41951203,671.81,671.74,1.09868714]
[1748916461346,1.4195779,671.8,671.74,1.09868714]
[1748916461547,0.41520657,671.82,671.74,1.09868714]
[1748916462343,0.41720885,671.81,671.74,1.09868714]
[1748916462641,1.00237412,671.8,671.74,1.09868714]
[1748916462849,0.41720828,671.79,671.74,1.09868714]
[1748916463149,0.41722426,671.78,671.74,1.09868714]
[1748916463340,0.41720828,671.8,671.74,1.09868714]
[1748916463544,0.41721923,671.77,671.74,1.09868714]
[1748916464342,1.00237544,671.76,671.74,1.09868714]
[1748916464845,0.41721021,671.75,671.74,1.09868714]
[1748916465041,1.00237544,671.76,671.74,1.09868714]
[1748916465240,1.41987242,671.75,671.74,1.09868714]
[1748916465442,0.4172206,671.75,671.74,1.09868714]
[1748916465647,1.00237544,671.76,671.74,1.09868714]
[1748916466042,1.00265211,671.75,671.74,1.09868714]
[1748916466243,0.41676626,671.75,671.74,1.09868714]
[1748916466449,3.42483037,671.75,671.74,1.09868714]
[1748916466644,3.42482911,671.75,671.74,1.09868714]
[1748916466849,3.84161204,671.75,671.74,1.09868714]
[1748916467046,3.42482911,671.75,671.74,1.09868714]
[1748916467247,3.42483353,671.75,671.74,1.09868714]
[1748916467448,3.00804617,671.75,671.74,1.09868714]
[1748916467643,3.42483403,671.75,671.74,1.09868714]
[1748916467943,4.01075302,671.75,671.74,1.09868714]
[1748916468344,5.01345484,671.75,671.74,1.09868714]
[1748916468547,4.42745807,671.75,671.74,1.09868714]
[1748916468752,5.84690487,671.75,671.74,1.09868714]
[1748916468949,4.84423195,671.75,671.74,1.09868714]
[1748916469146,7.64599615,671.75,671.74,1.09868714]
[1748916469351,5.43018984,671.75,671.74,1.09868714]
[1748916469547,5.84688966,671.75,671.74,1.09868714]
[1748916469745,4.84422672,671.75,671.74,1.09868714]
[1748916469947,5.26092654,671.75,671.74,1.09868714]
[1748916470149,4.84422672,671.75,671.74,1.09868714]
[1748916470350,5.84688808,671.75,671.74,1.09868714]
[1748916470551,4.84422672,671.75,671.74,1.09868714]
[1748916470947,5.68521978,671.75,671.74,1.09868714]
[1748916471150,5.68521962,671.75,671.74,1.09868714]
[1748916471351,5.26472109,671.75,671.74,1.09868714]
[1748916471547,6.26741917,671.75,671.74,1.09868714]
[1748916471753,6.68790582,671.75,671.74,1.09868714]
[1748916472154,5.68520771,671.75,671.74,1.09868714]
[1748916472352,6.6878899,671.75,671.74,1.09868714]
[1748916472556,6.10569151,671.75,671.74,1.09868714]
[1748916472756,7.10838366,671.75,671.74,1.09868714]
[1748916472958,7.38012685,671.75,671.74,1.09868714]
[1748916473155,6.69221035,671.75,671.74,1.09868714]
[1748916473360,6.26741158,671.75,671.74,1.09868714]
[1748916473559,5.26472109,671.75,671.74,1.09868714]
[1748916474057,5.68953481,671.75,671.74,1.09868714]
[1748916474254,5.26472109,671.75,671.74,1.09868714]
[1748916474456,6.26740319,671.75,671.74,1.09868714]
[1748916474762,5.26472109,671.75,671.74,1.09868714]
[1748916474959,6.26738754,671.75,671.74,1.09868714]
[1748916475161,5.26472109,671.75,671.74,1.09868714]
[1748916475358,7.11685482,671.75,671.74,1.09868714]
[1748916475556,7.11613938,671.75,671.74,1.09868714]
[1748916475755,7.11613363,671.75,671.74,1.09868714]
[1748916475955,8.11881436,671.75,671.74,1.09868714]
[1748916476159,6.69210196,671.75,671.74,1.09868714]
[1748916476864,7.11612781,671.75,671.74,1.09868714]
[1748916477059,7.69477161,671.75,671.74,1.09868714]
[1748916477265,6.69210196,671.75,671.74,1.09868714]
[1748916477667,7.69477161,671.75,671.74,1.09868714]
[1748916477865,7.69477932,671.75,671.74,1.09868714]
[1748916478061,6.69210196,671.75,671.74,1.09868714]
[1748916478670,7.69481266,671.75,671.74,1.09868714]
[1748916478871,6.69210196,671.75,671.74,1.09868714]
[1748916479068,7.11592874,671.75,671.74,1.09868714]
[1748916479270,6.69210196,671.75,671.74,1.09868714]
[1748916479670,8.69722835,671.75,671.74,1.09868714]
[1748916480073,7.69468143,671.75,671.74,1.09868714]
[1748916480469,8.69721434,671.75,671.74,1.09868714]
[1748916480874,7.69468143,671.75,671.74,1.09868714]
[1748916481177,8.69721434,671.75,671.74,1.09868714]
[1748916481574,8.69726409,671.75,671.74,1.09868714]